bitfinex/quotes_BTCUSD_20260310
["timestamp","ask_amount","ask_price","bid_price","bid_amount"]
[1773166233753,0.00144,70745.0,70727.0,0.01794711]
[1773166233955,0.03144,70745.0,70727.0,0.01794711]
[1773166234183,0.03,70745.0,70727.0,0.01794711]
[1773166234393,0.03,70745.0,70726.0,0.0002]
[1773166234394,0.00144,70744.0,70726.0,0.0002]
[1773166234702,0.03,70742.0,70726.0,0.0002]
[1773166234911,0.06567837,70743.0,70726.0,0.0002]
[1773166236482,0.03,70741.0,70728.0,0.07069336]
[1773166236691,0.03,70741.0,70726.0,0.0002]
[1773166236692,0.00144,70740.0,70729.0,0.01794711]
[1773166236865,0.00144,70740.0,70726.0,0.0002]
[1773166237669,0.00144,70739.0,70727.0,0.01794711]
[1773166238796,0.03,70737.0,70726.0,0.0002]
[1773166239519,0.03,70737.0,70727.0,0.01794711]
[1773166239899,0.00144,70738.0,70728.0,0.01794711]
[1773166240102,0.00144,70737.0,70728.0,0.01794711]
[1773166240304,0.00023,70750.0,70728.0,0.01794711]
[1773166240484,0.00144,70744.0,70728.0,0.01794711]
[1773166241003,0.03,70744.0,70730.0,0.01794711]
[1773166241323,0.00144,70743.0,70730.0,0.01794711]
[1773166243547,0.03,70742.0,70730.0,0.01794711]
[1773166243766,0.03,70742.0,70730.0,0.07069132]
[1773166244191,0.03,70742.0,70730.0,0.08863843]
[1773166244400,0.03,70742.0,70730.0,0.07069132]
[1773166244618,0.03,70742.0,70731.0,0.01794711]
[1773166245899,0.10067963,70742.0,70731.0,0.01794711]
[1773166246952,0.03,70742.0,70731.0,0.01794711]
[1773166247387,0.03,70741.0,70731.0,0.08863661]
[1773166248393,0.03144,70743.0,70732.0,0.01824636]
[1773166248598,0.10211841,70743.0,70732.0,0.01824636]
[1773166249831,0.10211841,70743.0,70715.0,0.000259]
[1773166249832,0.01843698,70742.0,70715.0,0.000259]
[1773166250032,0.03,70737.0,70707.0,0.01757129]
[1773166250360,0.03,70731.0,70711.0,0.37956091]
[1773166250688,0.03,70725.0,70708.0,0.07071329]
[1773166250903,0.00144,70724.0,70711.0,0.01757129]
[1773166251109,0.03,70725.0,70705.0,0.07071633]
[1773166251315,0.00144,70724.0,70715.0,0.01757129]
[1773166251513,0.07068236,70740.0,70715.0,0.01757129]
[1773166251665,0.00144,70739.0,70717.0,0.01757129]
[1773166251870,0.00144,70738.0,70719.0,0.01757129]
[1773166252271,0.03,70737.0,70721.0,0.01757129]
[1773166254455,0.03,70735.0,70721.0,0.07070033]
[1773166254623,0.03,70735.0,70722.0,0.01757129]
[1773166255468,0.03,70736.0,70722.0,0.01757129]
[1773166255985,0.03,70736.0,70718.0,0.07070143]
[1773166256132,0.03,70734.0,70715.0,0.07090631]
[1773166256368,0.03,70732.0,70715.0,0.07090631]
[1773166256669,0.03,70732.0,70708.0,0.07071328]
[1773166256670,0.01843698,70727.0,70708.0,0.07071328]
[1773166257008,0.04843698,70724.0,70710.0,0.07071124]
[1773166257211,0.00144,70723.0,70712.0,0.07632928]
[1773166257401,0.00144,70723.0,70712.0,0.00562]
[1773166258061,0.00144,70723.0,70700.0,0.07115131]
[1773166258062,0.03,70719.0,70700.0,0.00043]
[1773166258266,0.01843698,70714.0,70700.0,0.00023]
[1773166258467,0.03,70711.0,70700.0,0.00023]
[1773166258888,0.07214935,70713.0,70701.0,0.01757129]
[1773166258889,0.00144,70713.0,70701.0,0.01757129]
[1773166259101,0.00144,70715.0,70701.0,0.01757129]
[1773166259512,0.0706969,70725.0,70701.0,0.01794696]
[1773166259708,0.03144,70724.0,70701.0,0.01794696]
[1773166260068,0.03,70724.0,70701.0,0.01794696]
[1773166260269,0.00144,70723.0,70701.0,0.01794696]
[1773166260471,0.03,70721.0,70702.0,0.07071935]
[1773166260872,0.00144,70720.0,70702.0,0.07071935]
[1773166261082,0.00144,70720.0,70703.0,0.01757129]
[1773166262320,0.00144,70719.0,70703.0,0.01757129]
[1773166262516,0.03144,70719.0,70704.0,0.07071735]
[1773166262930,0.03144,70719.0,70704.0,0.08828864]
[1773166263198,0.03144,70719.0,70705.0,0.01757129]
[1773166263706,0.07068236,70739.0,70709.0,0.15980545]
[1773166263964,0.00144,70738.0,70712.0,0.01757129]
[1773166264156,0.07068236,70739.0,70712.0,0.01757129]
[1773166264361,0.00144,70737.0,70712.0,0.01757129]
[1773166264639,0.00144,70737.0,70713.0,0.07070835]
[1773166264640,0.03,70735.0,70713.0,0.07070835]
[1773166264853,0.03,70735.0,70714.0,0.01757129]
[1773166265658,0.07212444,70737.0,70714.0,0.01757129]
[1773166265659,0.03,70734.0,70714.0,0.01757129]
[1773166265959,0.03,70734.0,70713.0,0.07070835]
[1773166265960,0.03,70730.0,70713.0,0.001]
[1773166266172,0.00144,70729.0,70713.0,0.001]
[1773166266381,0.00144,70729.0,70712.0,0.0002]
[1773166266580,0.00144,70729.0,70713.0,0.01757129]
[1773166266798,0.03,70728.0,70715.0,0.01757129]
[1773166267565,0.00144,70727.0,70715.0,0.01757129]
[1773166267766,0.00144,70736.0,70717.0,0.01757129]
[1773166267978,0.07630199,70740.0,70717.0,0.01757129]
[1773166268176,0.00144,70736.0,70717.0,0.01757129]
[1773166268377,0.00144,70735.0,70717.0,0.01757129]
[1773166268582,0.00144,70738.0,70720.0,0.15980545]
[1773166268791,0.00022001,70753.0,70730.0,0.15980545]
[1773166269127,0.11120374,70769.0,70722.0,0.640699]
[1773166269128,0.07065565,70766.0,70743.0,0.01757129]
[1773166269330,0.07065491,70767.0,70745.0,0.01757129]
[1773166269608,0.00144,70764.0,70745.0,0.01757129]
[1773166269835,0.07627352,70768.0,70745.0,0.01757129]
[1773166269836,0.03,70767.0,70745.0,0.01757129]
[1773166270042,0.00144,70769.0,70751.0,0.01757129]
[1773166270174,0.00144,70769.0,70753.0,0.01757129]
[1773166270374,0.00144,70769.0,70755.0,0.01757129]
[1773166270576,0.00144,70769.0,70755.0,0.01901129]
[1773166270779,0.00144,70769.0,70756.0,0.07066538]
[1773166271092,0.00144,70769.0,70757.0,0.01757129]
[1773166271510,0.00022001,70772.0,70757.0,0.01757129]
[1773166272721,0.07209027,70772.0,70757.0,0.01757129]
[1773166272928,0.03,70771.0,70754.0,0.07066703]
[1773166273128,0.03,70771.0,70753.0,0.07066801]
[1773166273129,0.03,70771.0,70749.0,0.08824286]
[1773166273385,0.03,70769.0,70748.0,0.07067327]
[1773166273921,0.03,70769.0,70748.0,0.08824456]
[1773166274576,0.03,70771.0,70749.0,0.01757129]
[1773166274972,0.03,70769.0,70750.0,0.07067137]
[1773166275156,0.03,70769.0,70751.0,0.01757129]
[1773166275983,0.03,70769.0,70750.0,0.07067137]
[1773166276398,0.03,70769.0,70747.0,0.0706741]
[1773166276945,0.03,70767.0,70749.0,0.07067237]
[1773166277144,0.00144,70766.0,70749.0,0.08824366]
[1773166277345,0.00144,70766.0,70749.0,0.07067237]
[1773166278059,0.00144,70766.0,70748.0,0.07067237]
[1773166278670,0.00144,70766.0,70749.0,0.01757129]
[1773166279100,0.03144,70766.0,70751.0,0.01757129]
[1773166279260,0.03,70766.0,70751.0,0.01757129]
[1773166279460,0.00144,70765.0,70751.0,0.01757129]
[1773166279661,0.00022001,70780.0,70751.0,0.01757129]
[1773166279917,0.00144,70776.0,70751.0,0.01757129]
[1773166280215,0.07086244,70779.0,70764.0,0.01801059]
[1773166280216,0.00022001,70779.0,70764.0,0.01801059]
[1773166280428,0.00022001,70779.0,70766.0,0.01801059]
[1773166280628,0.00166001,70782.0,70768.0,0.01801059]
[1773166281007,0.00144,70784.0,70768.0,0.01801059]
[1773166281244,0.00144,70784.0,70770.0,0.01801059]
[1773166282156,0.03144,70784.0,70770.0,0.01801059]
[1773166282372,0.03144,70784.0,70767.0,0.35884962]
[1773166282373,0.10207743,70784.0,70767.0,0.28675722]
[1773166282909,0.10207799,70784.0,70767.0,0.35741082]
[1773166283132,0.10207799,70784.0,70768.0,0.01801059]
[1773166283413,0.10207799,70784.0,70768.0,0.08866381]
[1773166284253,0.00144,70783.0,70768.0,0.08866381]
[1773166284817,0.00144,70782.0,70769.0,0.01801059]
[1773166285044,0.07061221,70810.0,70771.0,0.01801059]
[1773166285234,0.00144,70794.0,70773.0,0.01801059]
[1773166285931,0.03603563,70812.0,70772.0,0.0706494]
[1773166285932,0.00144,70797.0,70781.0,0.01801059]
[1773166286132,0.00015,70817.0,70789.0,0.28598682]
[1773166286402,0.00015,70817.0,70791.0,0.01801059]
[1773166286403,0.07075455,70817.0,70791.0,0.01801059]
[1773166286619,0.07075455,70817.0,70789.0,0.28598682]
[1773166286620,0.07075455,70817.0,70792.0,0.00144]
[1773166286833,0.07075455,70817.0,70793.0,0.01801059]
[1773166287068,0.03,70816.0,70789.0,0.28598682]
[1773166287311,0.03,70816.0,70790.0,0.07063144]
[1773166287312,0.03,70812.0,70790.0,0.07063144]
[1773166287480,0.00144,70811.0,70790.0,0.07063144]
[1773166287633,0.00144,70811.0,70784.0,0.07063679]
[1773166287634,0.03,70809.0,70784.0,0.00144]
[1773166287836,0.03,70807.0,70782.0,0.07207863]
[1773166288037,0.04202476,70807.0,70782.0,0.07207863]
[1773166288632,0.01202476,70806.0,70782.0,0.07063863]
[1773166288853,0.03,70805.0,70781.0,0.07075248]
[1773166289060,0.00144,70804.0,70781.0,0.07075248]
[1773166289258,0.03,70802.0,70781.0,0.07075248]
[1773166289463,0.03,70802.0,70781.0,0.08876307]
[1773166289862,0.03,70802.0,70781.0,0.07075248]
[1773166290078,0.03,70800.0,70781.0,0.07075248]
[1773166291109,0.03,70799.0,70781.0,0.07075248]
[1773166292000,0.03144,70799.0,70781.0,0.07075248]
[1773166292200,0.03,70798.0,70782.0,0.01931422]
[1773166292372,0.03,70798.0,70784.0,0.01931422]
[1773166293155,0.03,70797.0,70784.0,0.01931422]
[1773166293570,0.00144,70799.0,70784.0,0.01931422]
[1773166294031,0.00144,70799.0,70786.0,0.01926279]
[1773166294338,0.03,70802.0,70786.0,0.01926279]
[1773166294542,0.07061141,70811.0,70786.0,0.01926279]
[1773166294745,0.00144,70810.0,70786.0,0.01926279]
[1773166294925,0.07061141,70811.0,70786.0,0.01926279]
[1773166295134,0.03,70816.0,70791.0,0.01801059]
[1773166295367,0.03037509,70816.0,70793.0,0.01801059]
[1773166295570,0.00144,70815.0,70793.0,0.01801059]
[1773166295773,0.03037509,70816.0,70793.0,0.01801059]
[1773166295970,0.00144,70814.0,70793.0,0.01801059]
[1773166296176,0.03,70812.0,70794.0,0.07062745]
[1773166296422,0.03,70808.0,70781.0,0.07064042]
[1773166296597,0.04923804,70806.0,70781.0,0.07064042]
[1773166296793,0.00144,70805.0,70782.0,0.01945059]
[1773166297485,0.00144,70805.0,70786.0,0.0002]
[1773166298212,0.03,70803.0,70787.0,0.07063443]
[1773166298589,0.03,70803.0,70786.0,0.07083491]
[1773166299243,0.03,70803.0,70787.0,0.02136316]
[1773166300199,0.10061928,70803.0,70789.0,0.02130711]
[1773166300642,0.00144,70802.0,70789.0,0.02130711]
[1773166301147,0.00144,70801.0,70789.0,0.02130711]
[1773166301924,0.00144,70800.0,70789.0,0.02130711]
[1773166302328,0.00144,70800.0,70786.0,0.0002]
[1773166302329,0.03,70799.0,70786.0,0.0002]
[1773166302753,0.03,70799.0,70777.0,0.07064423]
[1773166303070,0.03004294,70799.0,70778.0,0.07084301]
[1773166303419,4.294e-05,70798.0,70778.0,0.0002]
[1773166303867,0.03,70799.0,70778.0,0.07084291]
[1773166304138,0.03,70799.0,70779.0,0.02124483]
[1773166304567,0.03,70797.0,70781.0,0.02125956]
[1773166304776,0.00144,70798.0,70781.0,0.02125956]
[1773166305181,0.00144,70798.0,70783.0,0.02125956]
[1773166305933,0.00144,70798.0,70780.0,0.07064142]
[1773166306162,0.00144,70798.0,70781.0,0.00144]
[1773166306569,0.07062446,70797.0,70781.0,0.00144]
[1773166306897,0.03,70796.0,70778.0,0.0002]
[1773166307191,0.03004476,70796.0,70775.0,0.0215031]
[1773166307428,0.03004476,70796.0,70747.0,0.03463743]
[1773166307429,4.476e-05,70788.0,70766.0,0.0002937]
[1773166307631,0.03,70789.0,70756.0,0.07210494]
[1773166307632,4.476e-05,70786.0,70756.0,0.07210494]
[1773166307802,4.476e-05,70786.0,70758.0,0.07066333]
[1773166308008,0.00012272,70784.0,70760.0,0.07066111]
[1773166308220,0.00144,70783.0,70759.0,0.07066197]
[1773166308366,9.968e-05,70782.0,70759.0,0.07066181]
[1773166308547,9.968e-05,70782.0,70760.0,0.07066128]
[1773166308752,0.00144,70781.0,70761.0,0.0706594]
[1773166309030,0.00144,70781.0,70760.0,0.0706594]
[1773166309396,0.03,70787.0,70764.0,0.02128462]
[1773166309601,0.03011245,70787.0,70764.0,0.02128462]
[1773166309797,0.00144,70786.0,70764.0,0.02128462]
[1773166310266,0.00144,70785.0,70764.0,0.02128462]
[1773166310592,0.03,70783.0,70764.0,0.02128462]
[1773166310788,0.00012393,70782.0,70763.0,0.00048]
[1773166312340,0.00196042,70778.0,70763.0,0.0002]
[1773166312761,0.03,70776.0,70763.0,0.0002]
[1773166312973,0.00144,70775.0,70763.0,0.0002]
[1773166315199,0.03,70773.0,70763.0,0.0002]
[1773166315526,0.07064441,70777.0,70763.0,0.0002]
[1773166315527,0.00022001,70781.0,70764.0,0.02139886]
[1773166315732,0.00144,70780.0,70766.0,0.02139886]
[1773166316304,0.03144,70780.0,70766.0,0.02139886]
[1773166317302,0.03,70778.0,70766.0,0.01899796]
[1773166317503,0.03,70778.0,70767.0,0.02110893]
[1773166318294,0.00144,70777.0,70767.0,0.02110893]
[1773166318463,0.00144,70776.0,70767.0,0.02110893]
[1773166319094,0.07063825,70784.0,70767.0,0.02110893]
[1773166319095,0.00022001,70789.0,70767.0,0.02110893]
[1773166319293,0.10063546,70786.0,70770.0,0.22163436]
[1773166319494,0.00144,70785.0,70771.0,0.02110893]
[1773166320176,0.00022001,70781.0,70771.0,0.02110893]
[1773166320415,0.00022001,70781.0,70750.0,0.07139506]
[1773166320728,0.00022001,70781.0,70767.0,0.00144]
[1773166321112,0.00022001,70781.0,70767.0,0.02254893]
[1773166321710,0.03236214,70779.0,70763.0,0.0002]
[1773166321909,0.00144,70778.0,70763.0,0.0002]
[1773166322125,0.07074695,70787.0,70764.0,0.02110893]
[1773166322325,0.00011245,70787.0,70765.0,0.02110893]
[1773166322664,0.00144,70791.0,70773.0,0.02110893]
[1773166322967,0.00144,70791.0,70775.0,0.02110893]
[1773166323602,0.00144,70791.0,70776.0,0.07064541]
[1773166323809,0.00144,70791.0,70777.0,0.02110893]
[1773166324006,0.03,70790.0,70777.0,0.02110893]
[1773166325056,0.03144,70791.0,70777.0,0.02110893]
[1773166326070,0.03,70790.0,70778.0,0.02110893]
[1773166326684,0.00144,70791.0,70778.0,0.02110893]
[1773166327385,0.07112903,70807.0,70778.0,0.02110893]
[1773166327586,0.00051371,70807.0,70790.0,0.15976057]
[1773166327769,0.07060991,70812.0,70791.0,0.02254893]
[1773166327958,0.00144,70811.0,70791.0,0.02254893]
[1773166328158,0.00144,70811.0,70793.0,0.02110893]
[1773166328159,0.03,70810.0,70793.0,0.02110893]
[1773166328380,0.00022001,70805.0,70793.0,0.02110893]
[1773166328578,0.03,70810.0,70793.0,0.02110893]
[1773166329263,0.03144,70811.0,70793.0,0.02110893]
[1773166329472,0.03,70809.0,70793.0,0.02110893]
[1773166330518,0.03,70811.0,70795.0,0.02110893]
[1773166330719,0.10061074,70811.0,70795.0,0.02110893]
[1773166330944,0.03,70811.0,70795.0,0.02110893]
[1773166331355,0.03144,70811.0,70795.0,0.02110893]
[1773166331555,0.00037001,70817.0,70800.0,0.15976057]
[1773166331778,0.00144,70820.0,70801.0,0.02254893]
[1773166331998,0.00144,70820.0,70801.0,0.02292396]
[1773166332561,0.00144,70820.0,70803.0,0.02110893]
[1773166333604,0.03144,70820.0,70803.0,0.02110893]
[1773166334507,0.03,70819.0,70803.0,0.02110893]
[1773166334680,0.03,70819.0,70804.0,0.07061747]
[1773166334866,0.03,70819.0,70805.0,0.02110893]
[1773166335403,0.00562,70824.0,70804.0,0.07061747]
[1773166335404,0.00144,70830.0,70810.0,0.02110893]
[1773166335640,0.00022001,70828.0,70812.0,0.02110893]
[1773166336906,0.00022001,70828.0,70814.0,0.02110893]
[1773166337343,0.07081363,70828.0,70814.0,0.02110893]
[1773166337550,0.03,70827.0,70812.0,0.0706085]
[1773166337764,0.03,70827.0,70813.0,0.02110893]
[1773166337972,0.00022001,70828.0,70813.0,0.02254893]
[1773166338226,0.00023,70850.0,70818.0,0.15954539]
[1773166338403,0.00023,70850.0,70833.0,0.02110893]
[1773166338753,0.00023,70850.0,70821.0,0.02110893]
[1773166338754,0.10080188,70850.0,70821.0,0.02110893]
[1773166338976,0.10080188,70850.0,70828.0,0.07059296]
[1773166339239,0.00234958,70849.0,70820.0,0.22163436]
[1773166339584,0.00239592,70838.0,70818.0,0.001]
[1773166339633,0.00239592,70838.0,70816.0,0.07204509]
[1773166339834,0.00144,70837.0,70816.0,0.07204509]
[1773166340043,0.00144,70837.0,70817.0,0.02055343]
[1773166340244,0.03,70839.0,70817.0,0.02055343]
[1773166340245,0.00144,70836.0,70817.0,0.02055343]
[1773166340972,0.03,70834.0,70819.0,0.07060252]
[1773166341921,0.03,70834.0,70820.0,0.02055343]
[1773166342127,0.10202571,70836.0,70820.0,0.02055343]
[1773166342726,0.00242215,70835.0,70808.0,0.07061295]
[1773166342931,0.00240827,70832.0,70809.0,0.07205234]
[1773166343449,0.00240827,70832.0,70809.0,0.09260577]
[1773166343643,0.00240827,70832.0,70809.0,0.07205234]
[1773166343963,0.00240827,70832.0,70810.0,0.02055343]
[1773166344166,0.00240827,70832.0,70803.0,0.07061774]
[1773166344365,0.00240827,70832.0,70807.0,0.00144]
[1773166344962,0.03,70830.0,70808.0,0.07061349]
[1773166345159,0.02128337,70829.0,70807.0,0.00144]
[1773166345355,0.03,70822.0,70800.0,0.07085132]
[1773166345570,0.03,70820.0,70800.0,0.07229132]
[1773166345910,0.03,70814.0,70800.0,0.00023]
[1773166346109,0.00144,70813.0,70800.0,0.00023]
[1773166346486,0.00144,70813.0,70800.0,0.00060503]
[1773166347073,0.03144,70813.0,70800.0,0.00060503]
[1773166347281,0.03,70811.0,70800.0,0.00060503]
[1773166347678,0.03,70811.0,70800.0,0.07122582]
[1773166347896,0.03,70811.0,70800.0,0.00060503]
[1773166348075,0.03,70807.0,70796.0,0.00562]
[1773166348280,0.03037472,70807.0,70796.0,0.00562]
[1773166348696,0.03,70805.0,70796.0,0.00562]
[1773166348897,0.03,70803.0,70796.0,0.00562]
[1773166349336,0.03,70801.0,70800.0,0.00022]
[1773166349516,0.03,70801.0,70796.0,0.00562]
[1773166349517,0.04425829,70800.0,70796.0,0.00562]
[1773166349749,0.03,70799.0,70796.0,0.00562]
[1773166350152,0.07242923,70807.0,70796.0,0.00562]
[1773166350153,0.07098923,70807.0,70796.0,0.00562]
[1773166350379,0.044874,70806.0,70796.0,0.00562]
[1773166350797,0.03,70805.0,70796.0,0.0762449]
[1773166351015,0.04389298,70804.0,70796.0,0.00562]
[1773166351422,0.07242953,70807.0,70796.0,0.00562]
[1773166351631,0.04389298,70803.0,70796.0,0.00562]
[1773166351809,0.01502476,70802.0,70796.0,0.00562]
[1773166352014,0.03,70801.0,70797.0,0.07062446]
[1773166352165,0.04502476,70801.0,70796.0,0.00562]
[1773166352379,0.03,70799.0,70796.0,0.00562]
[1773166352876,0.03,70797.0,70796.0,0.00562]
[1773166353076,0.03,70795.0,70794.0,0.0003278]
[1773166353282,0.07243,70807.0,70794.0,0.00630145]
[1773166353721,0.01457978,70806.0,70793.0,0.07206756]
[1773166354236,0.03,70805.0,70793.0,0.07206756]
[1773166354447,0.03,70803.0,70793.0,0.07206756]
[1773166354686,0.03,70803.0,70794.0,0.02055343]
[1773166354909,0.07060029,70822.0,70794.0,0.02055343]
[1773166355083,0.01984337,70820.0,70794.0,0.02092815]
[1773166355808,0.04984337,70815.0,70795.0,0.07062645]
[1773166356107,0.04984337,70815.0,70777.0,0.0006691]
[1773166356108,0.15954539,70810.0,70777.0,0.0006691]
[1773166356265,0.15954539,70810.0,70778.0,0.09119646]
[1773166356266,0.03,70805.0,70778.0,0.09119646]
[1773166356471,0.03,70800.0,70778.0,0.07208303]
[1773166356667,0.04984337,70800.0,70779.0,0.02055343]
[1773166356879,0.00144,70804.0,70779.0,0.02055343]
[1773166356880,0.03,70798.0,70779.0,0.02055343]
[1773166357135,0.00144,70797.0,70794.0,0.00022]
[1773166357327,0.03,70795.0,70794.0,0.00022]
[1773166357826,0.03,70795.0,70777.0,0.07131252]
[1773166357827,0.03,70793.0,70777.0,0.0006691]
[1773166358048,0.03,70789.0,70779.0,0.00022]
[1773166358585,0.03,70787.0,70779.0,0.00022]
[1773166358790,0.04984337,70785.0,70777.0,0.0006691]
[1773166359408,0.03,70785.0,70777.0,0.0006691]
[1773166359746,0.00144,70795.0,70779.0,0.07064242]
[1773166360562,0.03,70796.0,70779.0,0.07064242]
[1773166360763,0.03,70796.0,70780.0,0.02055343]
[1773166360967,0.03144,70795.0,70780.0,0.02055343]
[1773166361171,0.00144,70794.0,70780.0,0.02055343]
[1773166361623,0.01984337,70793.0,70779.0,0.07064242]
[1773166361874,0.03,70790.0,70779.0,0.07064242]
[1773166362108,0.03,70790.0,70779.0,0.07208242]
[1773166362550,0.04984337,70790.0,70778.0,0.00144]
[1773166362729,0.07063042,70792.0,70777.0,0.07142576]
[1773166362733,0.03,70788.0,70777.0,0.07142576]
[1773166363707,0.03,70787.0,70777.0,0.07142576]
[1773166364056,0.07206763,70794.0,70778.0,0.02055343]
[1773166364480,0.07062763,70794.0,70778.0,0.02055343]
[1773166364819,0.03,70791.0,70777.0,0.07142589]
[1773166365018,0.03,70787.0,70779.0,0.00022]
[1773166365447,0.03,70787.0,70771.0,0.00022]
[1773166365763,0.03,70777.0,70769.0,0.0002]
[1773166366091,0.04984337,70777.0,70769.0,0.0002]
[1773166367773,0.05082556,70777.0,70769.0,0.0002]
[1773166368446,0.00144,70776.0,70769.0,0.0002]
[1773166368852,0.03,70772.0,70747.0,0.19452039]
[1773166369055,0.03,70766.0,70755.0,9.547e-05]
[1773166369245,0.03,70762.0,70755.0,9.547e-05]
[1773166369857,0.01927995,70773.0,70755.0,9.547e-05]
[1773166370084,0.00144,70773.0,70756.0,0.01919505]
[1773166370284,0.07063244,70789.0,70755.0,9.547e-05]
[1773166370285,0.00144,70776.0,70758.0,0.01919505]
[1773166371083,0.00144,70780.0,70758.0,0.01919505]
[1773166371884,0.03144,70780.0,70760.0,0.01919505]
[1773166372722,0.10208207,70780.0,70760.0,0.01919505]
[1773166372922,0.10208207,70780.0,70761.0,0.00144]
[1773166373476,0.26162746,70780.0,70756.0,0.07210536]
[1773166373680,0.10208207,70780.0,70757.0,0.00144]
[1773166373856,0.10208207,70780.0,70760.0,0.02125776]
[1773166374075,0.10208183,70780.0,70760.0,0.02125776]
[1773166374556,0.00144,70779.0,70760.0,0.02125776]
[1773166374923,0.10064183,70780.0,70760.0,0.02125776]
[1773166374924,0.00144,70778.0,70760.0,0.02125776]
[1773166375120,0.00144,70778.0,70755.0,0.02143702]
[1773166375323,0.00144,70778.0,70755.0,0.09210321]
[1773166375912,0.03,70776.0,70755.0,0.09210321]
[1773166376353,0.03,70776.0,70755.0,0.07096166]
[1773166376556,0.03,70776.0,70756.0,0.0210237]
[1773166378289,0.03,70774.0,70758.0,0.02090735]
[1773166378783,0.03,70772.0,70760.0,0.02090735]
[1773166378962,0.03,70770.0,70760.0,0.02090735]
[1773166379281,0.03,70768.0,70760.0,0.02090735]
[1773166379715,0.03,70766.0,70760.0,0.02090735]
[1773166379849,0.03,70764.0,70760.0,0.02090735]
[1773166380054,0.03,70775.0,70760.0,0.02090735]
[1773166380249,0.03,70773.0,70756.0,0.07086537]
[1773166380567,0.07064662,70775.0,70757.0,0.00144]
[1773166380568,0.03,70771.0,70757.0,0.00144]
[1773166380756,0.00144,70770.0,70757.0,0.00144]
[1773166380955,0.08992636,70777.0,70757.0,0.00144]
[1773166380956,0.00144,70774.0,70758.0,0.01919505]
[1773166381238,0.15338732,70773.0,70758.0,0.01919505]
[1773166381514,0.15338732,70772.0,70757.0,0.00144]
[1773166382214,0.03,70771.0,70757.0,0.02211906]
[1773166382374,0.1393313,70770.0,70758.0,0.07066338]
[1773166382576,0.03,70769.0,70758.0,0.07066338]
[1773166382802,0.03,70767.0,70758.0,0.07066338]
[1773166382974,0.07208843,70773.0,70759.0,0.02067906]
[1773166383191,0.08349266,70772.0,70759.0,0.02067906]
[1773166383517,0.08349266,70771.0,70759.0,0.02067906]
[1773166383674,0.07208843,70773.0,70759.0,0.02067906]
[1773166383875,0.03,70769.0,70759.0,0.02067906]
[1773166384104,0.08638945,70768.0,70767.0,0.0001769]
[1773166384275,0.07208883,70773.0,70757.0,0.07210431]
[1773166384480,0.07208883,70773.0,70749.0,0.13779465]
[1773166384481,0.15954539,70770.0,70740.0,0.00582]
[1773166384797,0.01927995,70768.0,70743.0,0.00144]
[1773166385040,0.08442209,70767.0,70742.0,0.07087934]
[1773166385262,0.01927995,70766.0,70742.0,0.07087934]
[1773166385473,0.01927995,70764.0,70742.0,0.07087934]
[1773166385625,0.08553418,70763.0,70744.0,0.07067713]
[1773166385832,0.01927995,70762.0,70744.0,0.07067713]
[1773166386019,0.03,70760.0,70748.0,0.07087332]
[1773166386228,0.03,70758.0,70749.0,0.01919505]
[1773166386544,0.07066117,70761.0,70749.0,0.0706722]
[1773166386869,0.00144,70763.0,70750.0,0.01919505]
[1773166387084,0.00010057,70770.0,70750.0,0.01919505]
[1773166387276,0.03,70768.0,70750.0,0.01919505]
[1773166387626,0.00010057,70770.0,70750.0,0.01919505]
[1773166387627,0.03,70766.0,70750.0,0.01919505]
[1773166388030,0.03,70764.0,70750.0,0.01919505]
[1773166388246,0.03,70762.0,70750.0,0.01919505]
[1773166388448,0.03,70760.0,70748.0,0.0002]
[1773166388686,0.07066026,70762.0,70748.0,0.07087325]
[1773166389313,0.07066026,70762.0,70748.0,0.0002]
[1773166389521,0.01927995,70761.0,70742.0,0.09007427]
[1773166389694,0.01927995,70761.0,70750.0,0.001]
[1773166389851,0.01927995,70761.0,70742.0,0.09007427]
[1773166390049,0.01927995,70761.0,70742.0,0.07087922]
[1773166390571,0.07066139,70760.0,70742.0,0.07087922]
[1773166392598,0.07066139,70761.0,70742.0,0.07087922]
[1773166392795,0.07066139,70761.0,70743.0,0.01919505]
[1773166393160,0.07209936,70763.0,70743.0,0.01919505]
[1773166393510,0.03144,70762.0,70743.0,0.01919505]
[1773166393687,0.0012631,70762.0,70743.0,0.01919505]
[1773166394094,0.01927995,70761.0,70744.0,0.00144]
[1773166394302,0.03,70760.0,70744.0,0.02063505]
[1773166394707,0.03,70758.0,70746.0,0.01919505]
[1773166395815,0.03144,70758.0,70746.0,0.01919505]
[1773166396129,0.03,70758.0,70746.0,0.01919505]
[1773166396334,0.00144,70757.0,70746.0,0.01919505]
[1773166396634,0.03,70756.0,70744.0,0.00144]
[1773166396848,0.03,70756.0,70736.0,0.07068452]
[1773166396849,0.03,70752.0,70732.0,0.01919505]
[1773166397039,0.07210438,70757.0,70712.0,0.0063]
[1773166397040,0.15985408,70750.0,70729.0,0.07112741]
[1773166397191,0.01927995,70752.0,70734.0,0.07088726]
[1773166397393,0.00144,70751.0,70734.0,0.01939505]
[1773166397844,0.01927995,70752.0,70734.0,0.01939505]
[1773166398035,0.00144,70750.0,70734.0,0.01939505]
[1773166398236,0.00144,70750.0,70735.0,0.07088621]
[1773166398443,0.03,70751.0,70736.0,0.01919505]
[1773166398444,0.00144,70749.0,70736.0,0.01919505]
[1773166398921,0.03,70747.0,70736.0,0.08987992]
[1773166399121,0.07066967,70752.0,70736.0,0.08987992]
[1773166399122,0.07066138,70761.0,70737.0,0.01919505]
[1773166399305,0.00022001,70767.0,70742.0,0.02104605]
[1773166399505,0.00022001,70767.0,70746.0,0.640699]
[1773166399694,0.00022001,70767.0,70747.0,0.02104605]
[1773166399961,0.00022001,70767.0,70749.0,0.02104605]
[1773166400138,0.00022001,70767.0,70741.0,0.20457188]
[1773166400139,0.00033237,70767.0,70751.0,0.02104605]
[1773166400342,0.00033237,70767.0,70753.0,0.02104605]
[1773166401104,0.00033237,70767.0,70754.0,0.07066738]
[1773166401302,0.00033237,70767.0,70755.0,0.02104605]
[1773166401544,0.03,70773.0,70755.0,0.02104605]
[1773166401747,0.03,70773.0,70755.0,0.02115841]
[1773166402164,0.03,70772.0,70755.0,0.02115841]